[Event "Early Titled Tuesday Blitz | February 8 2022"]
[White "Thomas, Anysia"]
[Black "Pesotskiy, Mikhail"]
[WhiteFideId "670472"]
[BlackFideId "34164453"]
[WhiteElo "2002"]
[BlackElo "2010"]
[Result "0-1"]
[Round "06"]
[TimeControl "180+1"]
[Date "2022.02.08"]
[WhiteClock "0:00:05"]
[BlackClock "0:01:01"]

1. d4 {[%clk 0:02:02]}  Nf6 {[%clk 0:02:54]} 2. c4 {[%clk 0:02:02]}  e6 {[%clk 0:02:53]} 3. Nf3 {[%clk 0:02:02]}  Bb4+ {[%clk 0:02:53]} 4. Nbd2 {[%clk 0:02:01]}  b6 {[%clk 0:02:52]} 5. g3 {[%clk 0:02:01]}  Bb7 {[%clk 0:02:52]} 6. Bg2 {[%clk 0:02:01]}  O-O {[%clk 0:02:53]} 7. O-O {[%clk 0:02:02]}  d6 {[%clk 0:02:52]} 8. Nb1 {[%clk 0:01:59]}  d5 {[%clk 0:02:51]} 9. Ne5 {[%clk 0:01:58]}  Nbd7 {[%clk 0:02:50]} 10. a3 {[%clk 0:01:48]}  Bd6 {[%clk 0:02:49]} 11. Nxd7 {[%clk 0:01:47]}  Qxd7 {[%clk 0:02:44]} 12. Nc3 {[%clk 0:01:45]}  c5 {[%clk 0:02:39]} 13. cxd5 {[%clk 0:01:42]}  Nxd5 {[%clk 0:02:34]} 14. e4 {[%clk 0:01:40]}  Nxc3 {[%clk 0:02:34]} 15. bxc3 {[%clk 0:01:40]}  Rfd8 {[%clk 0:02:28]} 16. Be3 {[%clk 0:01:41]}  Rac8 {[%clk 0:02:28]} 17. Qh5 {[%clk 0:01:40]}  Bf8 {[%clk 0:02:22]} 18. Rfd1 {[%clk 0:01:40]}  cxd4 {[%clk 0:02:18]} 19. cxd4 {[%clk 0:01:36]}  Qa4 {[%clk 0:02:15]} 20. d5 {[%clk 0:01:11]}  exd5 {[%clk 0:02:01]} 21. exd5 {[%clk 0:01:10]}  Rc7 {[%clk 0:02:00]} 22. Bg5 {[%clk 0:01:04]}  f6 {[%clk 0:01:57]} 23. Be3 {[%clk 0:01:02]}  Rcd7 {[%clk 0:01:57]} 24. Rd4 {[%clk 0:00:59]}  Qb3 {[%clk 0:01:52]} 25. Be4 {[%clk 0:00:49]}  g6 {[%clk 0:01:49]} 26. Qg4 {[%clk 0:00:28]}  Bxd5 {[%clk 0:01:41]} 27. Bxd5+ {[%clk 0:00:27]}  Rxd5 {[%clk 0:01:42]} 28. Qe6+ {[%clk 0:00:27]}  Kg7 {[%clk 0:01:41]} 29. Rc1 {[%clk 0:00:21]}  R8d7 {[%clk 0:01:23]} 30. Rc8 {[%clk 0:00:17]}  Qb1+ {[%clk 0:01:17]} 31. Kg2 {[%clk 0:00:16]}  Rxd4 {[%clk 0:01:17]} 32. Rxf8 {[%clk 0:00:11]}  Kxf8 {[%clk 0:01:15]} 33. Bh6+ {[%clk 0:00:10]}  Rg7 {[%clk 0:01:14]} 34. Qxf6+ {[%clk 0:00:10]}  Ke8 {[%clk 0:01:15]} 35. Bxg7 {[%clk 0:00:08]}  Qe4+ {[%clk 0:01:14]} 36. Kh3 {[%clk 0:00:08]}  Qg4+ {[%clk 0:01:14]} 37. Kg2 {[%clk 0:00:08]}  Qe4+ {[%clk 0:01:07]} 38. Kh3 {[%clk 0:00:06]}  Rc4 {[%clk 0:01:03]} 39. Qf8+ {[%clk 0:00:06]}  Kd7 {[%clk 0:01:04]} 40. Qf7+ {[%clk 0:00:06]}  Kc8 {[%clk 0:01:02]} 41. Qf8+ {[%clk 0:00:04]}  Kb7 {[%clk 0:01:02]} 42. Qf7+ {[%clk 0:00:04]}  Rc7 {[%clk 0:01:02]} 43. Qf8 {[%clk 0:00:03]}  Qf5+ {[%clk 0:01:02]} 44. Kg2 {[%clk 0:00:03]}  Qxf8 {[%clk 0:01:01]} 45. Bxf8 {[%clk 0:00:04]}  Rc3 {[%clk 0:01:02]} 46. Bh6 {[%clk 0:00:04]}  Rxa3 {[%clk 0:01:02]} 47. Be3 {[%clk 0:00:04]}  b5 {[%clk 0:01:00]} 48. h4 {[%clk 0:00:05]}  b4 {[%clk 0:01:01]} 0-1


[Site "https://www.chess.com"]

[Event "Early Titled Tuesday Blitz | February 8 2022"]
[White "Toncheva, Nadya"]
[Black "Kepeshchuk, Mykhaylo"]
[WhiteFideId "2924056"]
[BlackFideId "14113139"]
[WhiteElo "1920"]
[BlackElo "2279"]
[Result "1-0"]
[Round "06"]
[TimeControl "180+1"]
[Date "2022.02.08"]
[WhiteClock "0:00:13"]
[BlackClock "0:00:02"]

1. e4 {[%clk 0:03:00]}  c5 {[%clk 0:02:59]} 2. c3 {[%clk 0:03:01]}  d6 {[%clk 0:02:58]} 3. d4 {[%clk 0:03:00]}  cxd4 {[%clk 0:02:56]} 4. cxd4 {[%clk 0:03:01]}  Nf6 {[%clk 0:02:57]} 5. Nc3 {[%clk 0:03:01]}  g6 {[%clk 0:02:56]} 6. Nf3 {[%clk 0:03:00]}  Bg7 {[%clk 0:02:56]} 7. Bd3 {[%clk 0:03:00]}  O-O {[%clk 0:02:56]} 8. h3 {[%clk 0:03:00]}  Nc6 {[%clk 0:02:54]} 9. O-O {[%clk 0:02:59]}  a6 {[%clk 0:02:54]} 10. Be3 {[%clk 0:02:58]}  b5 {[%clk 0:02:54]} 11. Rc1 {[%clk 0:02:54]}  Bb7 {[%clk 0:02:54]} 12. Qe2 {[%clk 0:02:52]}  Rc8 {[%clk 0:02:52]} 13. Rfd1 {[%clk 0:02:51]}  Qa5 {[%clk 0:02:35]} 14. a3 {[%clk 0:02:46]}  b4 {[%clk 0:02:32]} 15. axb4 {[%clk 0:02:45]}  Nxb4 {[%clk 0:02:30]} 16. Bb1 {[%clk 0:02:45]}  Rfd8 {[%clk 0:02:24]} 17. Nd2 {[%clk 0:02:41]}  Nd7 {[%clk 0:01:41]} 18. Nb3 {[%clk 0:02:01]}  Qh5 {[%clk 0:00:58]} 19. Qxh5 {[%clk 0:02:00]}  gxh5 {[%clk 0:00:59]} 20. Na5 {[%clk 0:01:55]}  Ba8 {[%clk 0:00:59]} 21. d5 {[%clk 0:01:42]}  Nc5 {[%clk 0:00:45]} 22. f3 {[%clk 0:01:35]}  Be5 {[%clk 0:00:27]} 23. Kf2 {[%clk 0:00:53]}  Bg7 {[%clk 0:00:26]} 24. Ke2 {[%clk 0:00:47]}  Kf8 {[%clk 0:00:26]} 25. Bd4 {[%clk 0:00:41]}  Bxd4 {[%clk 0:00:15]} 26. Rxd4 {[%clk 0:00:42]}  Rb8 {[%clk 0:00:15]} 27. Rg1 {[%clk 0:00:29]}  h4 {[%clk 0:00:14]} 28. Rd2 {[%clk 0:00:25]}  Rdc8 {[%clk 0:00:12]} 29. Na2 {[%clk 0:00:24]}  Nxa2 {[%clk 0:00:06]} 30. Bxa2 {[%clk 0:00:24]}  Rb5 {[%clk 0:00:06]} 31. Nc4 {[%clk 0:00:23]}  Nb3 {[%clk 0:00:06]} 32. Bxb3 {[%clk 0:00:20]}  Rxb3 {[%clk 0:00:07]} 33. Rc1 {[%clk 0:00:20]}  Bb7 {[%clk 0:00:06]} 34. Kd1 {[%clk 0:00:19]}  Rb4 {[%clk 0:00:05]} 35. Na5 {[%clk 0:00:16]}  Rxc1+ {[%clk 0:00:03]} 36. Kxc1 {[%clk 0:00:17]}  Rb5 {[%clk 0:00:02]} 37. Nxb7 {[%clk 0:00:13]}  Rxb7 {[%clk 0:00:03]} 38. Rc2 {[%clk 0:00:13]}  a5 {[%clk 0:00:02]} 39. Rc8+ {[%clk 0:00:14]}  Kg7 {[%clk 0:00:02]} 40. Kc2 {[%clk 0:00:13]} 1-0


[Site "https://www.chess.com"]

[Event "Early Titled Tuesday Blitz | February 8 2022"]
[White "Tregubov, Pavel V."]
[Black "Aggelis, Nikolaos"]
[WhiteFideId "4115341"]
[BlackFideId "4213220"]
[WhiteElo "2341"]
[BlackElo "2154"]
[Result "0-1"]
[Round "06"]
[TimeControl "180+1"]
[Date "2022.02.08"]
[WhiteClock "0:01:14"]
[BlackClock "0:01:04"]

1. e4 {[%clk 0:02:51]}  c5 {[%clk 0:02:59]} 2. Nf3 {[%clk 0:02:50]}  e6 {[%clk 0:02:59]} 3. c3 {[%clk 0:02:50]}  d5 {[%clk 0:02:57]} 4. exd5 {[%clk 0:02:51]}  exd5 {[%clk 0:02:58]} 5. d4 {[%clk 0:02:51]}  c4 {[%clk 0:02:59]} 6. b3 {[%clk 0:02:50]}  cxb3 {[%clk 0:02:59]} 7. axb3 {[%clk 0:02:50]}  Nf6 {[%clk 0:02:59]} 8. Bd3 {[%clk 0:02:50]}  Be7 {[%clk 0:02:59]} 9. O-O {[%clk 0:02:51]}  O-O {[%clk 0:03:00]} 10. Re1 {[%clk 0:02:51]}  h6 {[%clk 0:02:58]} 11. Bf4 {[%clk 0:02:51]}  Nc6 {[%clk 0:02:59]} 12. h3 {[%clk 0:02:50]}  Be6 {[%clk 0:02:57]} 13. Ne5 {[%clk 0:02:46]}  Nxe5 {[%clk 0:02:57]} 14. Bxe5 {[%clk 0:02:45]}  a6 {[%clk 0:02:57]} 15. c4 {[%clk 0:02:39]}  Nd7 {[%clk 0:02:50]} 16. Bg3 {[%clk 0:02:36]}  Bf6 {[%clk 0:02:50]} 17. Bf1 {[%clk 0:02:26]}  dxc4 {[%clk 0:02:46]} 18. bxc4 {[%clk 0:02:26]}  Nb6 {[%clk 0:02:46]} 19. c5 {[%clk 0:02:15]}  Qxd4 {[%clk 0:02:44]} 20. Qxd4 {[%clk 0:01:52]}  Bxd4 {[%clk 0:02:45]} 21. Ra5 {[%clk 0:01:51]}  Nd7 {[%clk 0:02:18]} 22. Rd1 {[%clk 0:01:51]}  Bxc5 {[%clk 0:02:11]} 23. Rxd7 {[%clk 0:01:51]}  Bb6 {[%clk 0:02:11]} 24. Rad5 {[%clk 0:01:50]}  Bxd5 {[%clk 0:02:07]} 25. Rxd5 {[%clk 0:01:50]}  Rfd8 {[%clk 0:02:07]} 26. Nc3 {[%clk 0:01:50]}  Bd4 {[%clk 0:01:57]} 27. Bc7 {[%clk 0:01:40]}  Rxd5 {[%clk 0:01:50]} 28. Nxd5 {[%clk 0:01:40]}  b5 {[%clk 0:01:44]} 29. Be2 {[%clk 0:01:38]}  Re8 {[%clk 0:01:34]} 30. Kf1 {[%clk 0:01:37]}  Be5 {[%clk 0:01:27]} 31. Ba5 {[%clk 0:01:36]}  Rb8 {[%clk 0:01:09]} 32. f4 {[%clk 0:01:27]}  Bd6 {[%clk 0:01:08]} 33. Ke1 {[%clk 0:01:16]}  b4 {[%clk 0:01:09]} 34. Kd1 {[%clk 0:01:14]}  b3 {[%clk 0:01:09]} 35. Kc1 {[%clk 0:01:14]}  Rc8+ {[%clk 0:01:04]} 36. Kb1 {[%clk 0:01:14]}  Rc5 {[%clk 0:01:04]} 0-1


[Site "https://www.chess.com"]

[Event "Early Titled Tuesday Blitz | February 8 2022"]
[White "Tuleyeva-Aketayeva, Dana"]
[Black "Ardila, Oscar Humberto"]
[WhiteFideId "13701932"]
[BlackFideId "4404742"]
[WhiteElo "1944"]
[BlackElo "1898"]
[Result "1-0"]
[Round "06"]
[TimeControl "180+1"]
[Date "2022.02.08"]
[WhiteClock "0:00:53"]
[BlackClock "0:01:45"]

1. d4 {[%clk 0:03:00]}  Nf6 {[%clk 0:02:59]} 2. Nf3 {[%clk 0:03:01]}  e6 {[%clk 0:03:00]} 3. g3 {[%clk 0:03:01]}  c5 {[%clk 0:03:01]} 4. c3 {[%clk 0:03:00]}  Be7 {[%clk 0:03:00]} 5. Bg2 {[%clk 0:03:00]}  O-O {[%clk 0:03:01]} 6. O-O {[%clk 0:03:00]}  Qc7 {[%clk 0:02:59]} 7. Bf4 {[%clk 0:02:59]}  d6 {[%clk 0:02:59]} 8. Nbd2 {[%clk 0:02:54]}  Nbd7 {[%clk 0:02:57]} 9. e4 {[%clk 0:02:48]}  cxd4 {[%clk 0:02:53]} 10. cxd4 {[%clk 0:02:46]}  Rb8 {[%clk 0:02:51]} 11. Rc1 {[%clk 0:02:42]}  Qb6 {[%clk 0:02:51]} 12. Nc4 {[%clk 0:02:38]}  Qb4 {[%clk 0:02:48]} 13. a3 {[%clk 0:02:33]}  Qb5 {[%clk 0:02:25]} 14. Nxd6 {[%clk 0:02:30]}  Qa6 {[%clk 0:02:21]} 15. Qb3 {[%clk 0:01:45]}  Bxd6 {[%clk 0:02:13]} 16. Bxd6 {[%clk 0:01:37]}  Qxd6 {[%clk 0:02:13]} 17. e5 {[%clk 0:01:37]}  Qe7 {[%clk 0:02:07]} 18. exf6 {[%clk 0:01:36]}  Nxf6 {[%clk 0:02:08]} 19. Ne5 {[%clk 0:01:33]}  Nd7 {[%clk 0:02:01]} 20. Rc7 {[%clk 0:01:27]}  Qd6 {[%clk 0:02:00]} 21. Nxd7 {[%clk 0:01:23]}  Qxc7 {[%clk 0:01:56]} 22. Nxf8 {[%clk 0:01:10]}  Kxf8 {[%clk 0:01:53]} 23. Qb4+ {[%clk 0:01:09]}  Qe7 {[%clk 0:01:51]} 24. Qa5 {[%clk 0:01:05]}  b6 {[%clk 0:01:49]} 25. Qe5 {[%clk 0:01:02]}  Rb7 {[%clk 0:01:43]} 26. Bxb7 {[%clk 0:01:00]}  Bxb7 {[%clk 0:01:44]} 27. Qb8+ {[%clk 0:01:00]}  Bc8 {[%clk 0:01:45]} 28. Qxc8+ {[%clk 0:00:57]}  Qe8 {[%clk 0:01:39]} 29. Qxe8+ {[%clk 0:00:57]}  Kxe8 {[%clk 0:01:40]} 30. Rc1 {[%clk 0:00:57]}  Kd7 {[%clk 0:01:41]} 31. Kf1 {[%clk 0:00:57]}  Kd6 {[%clk 0:01:41]} 32. Ke2 {[%clk 0:00:57]}  Kd5 {[%clk 0:01:42]} 33. Kd3 {[%clk 0:00:57]}  f6 {[%clk 0:01:42]} 34. Rc7 {[%clk 0:00:56]}  g5 {[%clk 0:01:42]} 35. Rxh7 {[%clk 0:00:55]}  a5 {[%clk 0:01:43]} 36. Rf7 {[%clk 0:00:53]}  b5 {[%clk 0:01:44]} 37. Rxf6 {[%clk 0:00:52]}  e5 {[%clk 0:01:45]} 38. dxe5 {[%clk 0:00:52]}  Kxe5 {[%clk 0:01:45]} 39. Rb6 {[%clk 0:00:53]} 1-0


[Site "https://www.chess.com"]

[Event "Early Titled Tuesday Blitz | February 8 2022"]
[White "Turzo, Attila"]
[Black "Niyazgulova, Marina"]
[WhiteFideId "704954"]
[BlackFideId "24142573"]
[WhiteElo "2481"]
[BlackElo "2075"]
[Result "1-0"]
[Round "06"]
[TimeControl "180+1"]
[Date "2022.02.08"]
[WhiteClock "0:00:16"]
[BlackClock "0:00:06"]

1. d4 {[%clk 0:03:00]}  d5 {[%clk 0:02:59]} 2. c4 {[%clk 0:03:01]}  c6 {[%clk 0:02:59]} 3. Nc3 {[%clk 0:02:59]}  Nf6 {[%clk 0:02:57]} 4. e3 {[%clk 0:03:00]}  a6 {[%clk 0:02:55]} 5. Nf3 {[%clk 0:03:00]}  b5 {[%clk 0:02:55]} 6. cxd5 {[%clk 0:02:56]}  cxd5 {[%clk 0:02:54]} 7. Bd2 {[%clk 0:02:41]}  e6 {[%clk 0:02:49]} 8. Be2 {[%clk 0:02:41]}  Bd6 {[%clk 0:02:47]} 9. O-O {[%clk 0:02:41]}  O-O {[%clk 0:02:47]} 10. a4 {[%clk 0:02:34]}  b4 {[%clk 0:02:42]} 11. Na2 {[%clk 0:02:31]}  a5 {[%clk 0:02:39]} 12. Nc1 {[%clk 0:02:32]}  Ba6 {[%clk 0:02:34]} 13. Bxa6 {[%clk 0:02:16]}  Rxa6 {[%clk 0:02:32]} 14. Qe2 {[%clk 0:02:14]}  Ne4 {[%clk 0:02:23]} 15. Nb3 {[%clk 0:02:13]}  Qb6 {[%clk 0:02:17]} 16. Rfc1 {[%clk 0:02:12]}  Nd7 {[%clk 0:02:13]} 17. Qb5 {[%clk 0:02:06]}  Qa7 {[%clk 0:01:58]} 18. Be1 {[%clk 0:01:58]}  Rb8 {[%clk 0:01:52]} 19. Qe2 {[%clk 0:01:48]}  Nb6 {[%clk 0:01:30]} 20. Nfd2 {[%clk 0:01:36]}  f5 {[%clk 0:01:17]} 21. f3 {[%clk 0:01:23]}  Nxd2 {[%clk 0:01:17]} 22. Nxd2 {[%clk 0:01:23]}  Qb7 {[%clk 0:01:13]} 23. b3 {[%clk 0:01:16]}  Raa8 {[%clk 0:01:07]} 24. Qb5 {[%clk 0:01:11]}  Nd7 {[%clk 0:00:56]} 25. Qc6 {[%clk 0:01:05]}  Qxc6 {[%clk 0:00:45]} 26. Rxc6 {[%clk 0:01:06]}  Rb6 {[%clk 0:00:45]} 27. Rac1 {[%clk 0:01:05]}  Rab8 {[%clk 0:00:42]} 28. Nf1 {[%clk 0:00:49]}  Kf7 {[%clk 0:00:38]} 29. Ng3 {[%clk 0:00:42]}  Ke7 {[%clk 0:00:38]} 30. Nh5 {[%clk 0:00:39]}  g6 {[%clk 0:00:35]} 31. Nf4 {[%clk 0:00:36]}  Rxc6 {[%clk 0:00:30]} 32. Rxc6 {[%clk 0:00:35]}  Rb6 {[%clk 0:00:31]} 33. Rc8 {[%clk 0:00:33]}  Rb8 {[%clk 0:00:31]} 34. Rc2 {[%clk 0:00:31]}  Bxf4 {[%clk 0:00:27]} 35. exf4 {[%clk 0:00:32]}  Kd6 {[%clk 0:00:27]} 36. Kf2 {[%clk 0:00:29]}  Nb6 {[%clk 0:00:25]} 37. Rc5 {[%clk 0:00:27]}  Ra8 {[%clk 0:00:18]} 38. Ke3 {[%clk 0:00:27]}  Nd7 {[%clk 0:00:18]} 39. Rb5 {[%clk 0:00:28]}  Ra7 {[%clk 0:00:14]} 40. Kd3 {[%clk 0:00:27]}  Ra8 {[%clk 0:00:15]} 41. Bh4 {[%clk 0:00:27]}  Ra7 {[%clk 0:00:15]} 42. Bd8 {[%clk 0:00:26]}  Ra8 {[%clk 0:00:12]} 43. Bxa5 {[%clk 0:00:26]}  Rc8 {[%clk 0:00:12]} 44. Bxb4+ {[%clk 0:00:26]}  Kc6 {[%clk 0:00:11]} 45. Bc5 {[%clk 0:00:24]}  Kc7 {[%clk 0:00:09]} 46. b4 {[%clk 0:00:22]}  Ra8 {[%clk 0:00:09]} 47. Ra5 {[%clk 0:00:16]}  Rxa5 {[%clk 0:00:08]} 48. bxa5 {[%clk 0:00:17]}  Nxc5+ {[%clk 0:00:08]} 49. dxc5 {[%clk 0:00:17]}  Kc6 {[%clk 0:00:08]} 50. a6 {[%clk 0:00:16]}  Kc7 {[%clk 0:00:08]} 51. Kd4 {[%clk 0:00:17]}  Kc8 {[%clk 0:00:06]} 52. c6 {[%clk 0:00:16]}  Kc7 {[%clk 0:00:06]} 53. a7 {[%clk 0:00:16]} 1-0


[Site "https://www.chess.com"]

[Event "Early Titled Tuesday Blitz | February 8 2022"]
[White "Vaishali, Rameshbabu"]
[Black "Namitbir Singh Walia"]
[WhiteFideId "5091756"]
[BlackFideId "35071068"]
[WhiteElo "2343"]
[BlackElo "1479"]
[Result "1-0"]
[Round "06"]
[TimeControl "180+1"]
[Date "2022.02.08"]
[WhiteClock "0:00:34"]
[BlackClock "0:00:02"]

1. d4 {[%clk 0:02:59]}  d5 {[%clk 0:02:59]} 2. c4 {[%clk 0:02:59]}  c6 {[%clk 0:02:59]} 3. cxd5 {[%clk 0:02:57]}  cxd5 {[%clk 0:02:59]} 4. Bf4 {[%clk 0:02:57]}  Nc6 {[%clk 0:02:58]} 5. Nc3 {[%clk 0:02:56]}  Nf6 {[%clk 0:02:57]} 6. e3 {[%clk 0:02:56]}  e6 {[%clk 0:02:55]} 7. Be2 {[%clk 0:02:56]}  Bd6 {[%clk 0:02:54]} 8. Bg3 {[%clk 0:02:55]}  O-O {[%clk 0:02:54]} 9. Nf3 {[%clk 0:02:36]}  a6 {[%clk 0:02:52]} 10. Ne5 {[%clk 0:02:35]}  Bxe5 {[%clk 0:02:38]} 11. dxe5 {[%clk 0:02:36]}  Nd7 {[%clk 0:02:38]} 12. f4 {[%clk 0:02:33]}  Qb6 {[%clk 0:02:38]} 13. Qd2 {[%clk 0:02:32]}  Nc5 {[%clk 0:02:19]} 14. O-O {[%clk 0:02:30]}  Rd8 {[%clk 0:02:15]} 15. Kh1 {[%clk 0:02:28]}  Bd7 {[%clk 0:01:57]} 16. Bh4 {[%clk 0:02:23]}  Re8 {[%clk 0:01:48]} 17. Bd1 {[%clk 0:02:14]}  Na5 {[%clk 0:01:28]} 18. b3 {[%clk 0:02:05]}  Rac8 {[%clk 0:01:18]} 19. Rc1 {[%clk 0:01:53]}  Qb4 {[%clk 0:01:00]} 20. Be2 {[%clk 0:01:22]}  Nc6 {[%clk 0:00:38]} 21. Qb2 {[%clk 0:01:16]}  Ne4 {[%clk 0:00:28]} 22. Nxe4 {[%clk 0:01:03]}  Qxe4 {[%clk 0:00:29]} 23. Qd2 {[%clk 0:00:59]}  Na7 {[%clk 0:00:18]} 24. Bd3 {[%clk 0:00:56]}  Qxd3 {[%clk 0:00:04]} 25. Qxd3 {[%clk 0:00:56]}  Bb5 {[%clk 0:00:05]} 26. Rxc8 {[%clk 0:00:47]}  Rxc8 {[%clk 0:00:06]} 27. Qd4 {[%clk 0:00:38]}  Bxf1 {[%clk 0:00:05]} 28. Qxa7 {[%clk 0:00:37]}  Bb5 {[%clk 0:00:02]} 29. h3 {[%clk 0:00:34]} 1-0


[Site "https://www.chess.com"]

[Event "Early Titled Tuesday Blitz | February 8 2022"]
[White "Viani Antonio Dcunha"]
[Black "Lehtosaari, Mauri"]
[WhiteFideId "5027330"]
[BlackFideId "501999"]
[WhiteElo "2366"]
[BlackElo "2466"]
[Result "1-0"]
[Round "06"]
[TimeControl "180+1"]
[Date "2022.02.08"]
[WhiteClock "0:02:14"]
[BlackClock "0:01:28"]

1. e4 {[%clk 0:03:00]}  c5 {[%clk 0:02:57]} 2. Nf3 {[%clk 0:03:00]}  e6 {[%clk 0:02:57]} 3. d4 {[%clk 0:02:59]}  cxd4 {[%clk 0:02:55]} 4. Nxd4 {[%clk 0:03:00]}  Qb6 {[%clk 0:02:51]} 5. Nb3 {[%clk 0:02:50]}  Qc7 {[%clk 0:02:49]} 6. Nc3 {[%clk 0:02:49]}  a6 {[%clk 0:02:50]} 7. Bd3 {[%clk 0:02:47]}  b5 {[%clk 0:02:50]} 8. O-O {[%clk 0:02:46]}  Nf6 {[%clk 0:02:45]} 9. Qe2 {[%clk 0:02:45]}  d6 {[%clk 0:02:27]} 10. a4 {[%clk 0:02:44]}  b4 {[%clk 0:02:26]} 11. Na2 {[%clk 0:02:43]}  Nc6 {[%clk 0:02:20]} 12. Bd2 {[%clk 0:02:40]}  a5 {[%clk 0:02:19]} 13. c3 {[%clk 0:02:39]}  Rb8 {[%clk 0:02:05]} 14. Bb5 {[%clk 0:02:35]}  Bd7 {[%clk 0:01:59]} 15. cxb4 {[%clk 0:02:31]}  axb4 {[%clk 0:01:54]} 16. Rfc1 {[%clk 0:02:26]}  Qb7 {[%clk 0:01:29]} 17. Bxc6 {[%clk 0:02:14]}  Bxc6 {[%clk 0:01:28]} 18. Na5 {[%clk 0:02:14]} 1-0


[Site "https://www.chess.com"]

[Event "Early Titled Tuesday Blitz | February 8 2022"]
[White "Volkov, Maksim"]
[Black "Molina, Roberto Junio Brito"]
[WhiteFideId "54123070"]
[BlackFideId "2109450"]
[WhiteElo "2596"]
[BlackElo "2815"]
[Result "0-1"]
[Round "06"]
[TimeControl "180+1"]
[Date "2022.02.08"]
[WhiteClock "0:00:07"]
[BlackClock "0:00:09"]

1. d4 {[%clk 0:03:00]}  c6 {[%clk 0:03:00]} 2. c4 {[%clk 0:03:00]}  d5 {[%clk 0:03:01]} 3. Nf3 {[%clk 0:03:00]}  Nf6 {[%clk 0:03:02]} 4. g3 {[%clk 0:03:00]}  dxc4 {[%clk 0:03:01]} 5. a4 {[%clk 0:02:57]}  b5 {[%clk 0:03:02]} 6. Bg2 {[%clk 0:02:54]}  Bb7 {[%clk 0:03:02]} 7. Ne5 {[%clk 0:02:53]}  a6 {[%clk 0:02:59]} 8. Nc3 {[%clk 0:02:48]}  Qb6 {[%clk 0:02:40]} 9. O-O {[%clk 0:02:36]}  e6 {[%clk 0:02:35]} 10. b3 {[%clk 0:02:15]}  cxb3 {[%clk 0:02:33]} 11. Qxb3 {[%clk 0:02:15]}  Qxd4 {[%clk 0:02:05]} 12. axb5 {[%clk 0:02:02]}  Qxe5 {[%clk 0:01:53]} 13. Bf4 {[%clk 0:02:01]}  Qc5 {[%clk 0:01:47]} 14. bxa6 {[%clk 0:01:51]}  Bxa6 {[%clk 0:01:44]} 15. Bxb8 {[%clk 0:01:51]}  Nd5 {[%clk 0:01:32]} 16. Rfc1 {[%clk 0:01:39]}  Qb4 {[%clk 0:01:23]} 17. Qxb4 {[%clk 0:01:27]}  Bxb4 {[%clk 0:01:24]} 18. Nxd5 {[%clk 0:01:23]}  cxd5 {[%clk 0:01:17]} 19. Rxa6 {[%clk 0:01:21]}  Rxb8 {[%clk 0:01:17]} 20. Ra7 {[%clk 0:00:56]}  O-O {[%clk 0:01:15]} 21. Rcc7 {[%clk 0:00:55]}  Bd6 {[%clk 0:01:10]} 22. Rd7 {[%clk 0:00:55]}  Bc5 {[%clk 0:01:03]} 23. Rab7 {[%clk 0:00:52]}  Rxb7 {[%clk 0:01:01]} 24. Rxb7 {[%clk 0:00:53]}  Ra8 {[%clk 0:00:57]} 25. Bf3 {[%clk 0:00:51]}  g6 {[%clk 0:00:55]} 26. Kg2 {[%clk 0:00:49]}  Ra4 {[%clk 0:00:53]} 27. h4 {[%clk 0:00:48]}  h5 {[%clk 0:00:53]} 28. Rc7 {[%clk 0:00:45]}  Bd6 {[%clk 0:00:52]} 29. Rd7 {[%clk 0:00:45]}  Be5 {[%clk 0:00:52]} 30. e3 {[%clk 0:00:42]}  Ra2 {[%clk 0:00:52]} 31. Rb7 {[%clk 0:00:40]}  Bc3 {[%clk 0:00:51]} 32. Kf1 {[%clk 0:00:38]}  Kg7 {[%clk 0:00:50]} 33. Rd7 {[%clk 0:00:35]}  Kf6 {[%clk 0:00:49]} 34. Be2 {[%clk 0:00:35]}  Rb2 {[%clk 0:00:46]} 35. Bf3 {[%clk 0:00:35]}  Rb1+ {[%clk 0:00:45]} 36. Kg2 {[%clk 0:00:35]}  Be1 {[%clk 0:00:45]} 37. Be2 {[%clk 0:00:33]}  Rb2 {[%clk 0:00:42]} 38. Kf1 {[%clk 0:00:33]}  Bc3 {[%clk 0:00:41]} 39. Bf3 {[%clk 0:00:33]}  Rd2 {[%clk 0:00:37]} 40. Be2 {[%clk 0:00:32]}  Ra2 {[%clk 0:00:34]} 41. Bf3 {[%clk 0:00:31]}  Ra4 {[%clk 0:00:29]} 42. Be2 {[%clk 0:00:31]}  Rb4 {[%clk 0:00:30]} 43. Bf3 {[%clk 0:00:30]}  Be5 {[%clk 0:00:29]} 44. Kg2 {[%clk 0:00:28]}  Rb2 {[%clk 0:00:29]} 45. Kf1 {[%clk 0:00:28]}  Rb3 {[%clk 0:00:29]} 46. Kg2 {[%clk 0:00:28]}  Ra3 {[%clk 0:00:30]} 47. Be2 {[%clk 0:00:28]}  Rc3 {[%clk 0:00:29]} 48. Kf1 {[%clk 0:00:27]}  Rc1+ {[%clk 0:00:28]} 49. Kg2 {[%clk 0:00:27]}  Rc2 {[%clk 0:00:29]} 50. Bf3 {[%clk 0:00:28]}  Ra2 {[%clk 0:00:28]} 51. Kf1 {[%clk 0:00:27]}  Ra3 {[%clk 0:00:26]} 52. Kg2 {[%clk 0:00:27]}  Bb2 {[%clk 0:00:27]} 53. Be2 {[%clk 0:00:26]}  Bc1 {[%clk 0:00:26]} 54. Bf3 {[%clk 0:00:25]}  Ra2 {[%clk 0:00:25]} 55. Kf1 {[%clk 0:00:26]}  Ra1 {[%clk 0:00:25]} 56. Kg2 {[%clk 0:00:25]}  Ra3 {[%clk 0:00:23]} 57. Be2 {[%clk 0:00:25]}  Bb2 {[%clk 0:00:20]} 58. Bf3 {[%clk 0:00:25]}  Rd3 {[%clk 0:00:19]} 59. Be2 {[%clk 0:00:24]}  Rd2 {[%clk 0:00:19]} 60. Bf3 {[%clk 0:00:18]}  d4 {[%clk 0:00:17]} 61. e4 {[%clk 0:00:08]}  d3 {[%clk 0:00:17]} 62. Kf1 {[%clk 0:00:08]}  Bc3 {[%clk 0:00:16]} 63. Bg2 {[%clk 0:00:06]}  Bb4 {[%clk 0:00:15]} 64. Bf3 {[%clk 0:00:06]}  Bc5 {[%clk 0:00:15]} 65. Ke1 {[%clk 0:00:05]}  Rxf2 {[%clk 0:00:13]} 66. Rxd3 {[%clk 0:00:06]}  Rb2 {[%clk 0:00:12]} 67. Be2 {[%clk 0:00:05]}  Ke5 {[%clk 0:00:11]} 68. Kf1 {[%clk 0:00:05]}  Kxe4 {[%clk 0:00:09]} 69. Rf3 {[%clk 0:00:05]}  f5 {[%clk 0:00:08]} 70. Rf4+ {[%clk 0:00:05]}  Ke5 {[%clk 0:00:08]} 71. Rc4 {[%clk 0:00:05]}  Bd4 {[%clk 0:00:08]} 72. Rc6 {[%clk 0:00:05]}  Rb1+ {[%clk 0:00:05]} 73. Kg2 {[%clk 0:00:06]}  Rb8 {[%clk 0:00:04]} 74. Bc4 {[%clk 0:00:04]}  Re8 {[%clk 0:00:05]} 75. Ra6 {[%clk 0:00:04]}  Bc5 {[%clk 0:00:05]} 76. Kf3 {[%clk 0:00:04]}  Kf6 {[%clk 0:00:05]} 77. Rb6 {[%clk 0:00:04]}  Bd4 {[%clk 0:00:05]} 78. Rc6 {[%clk 0:00:04]}  Be5 {[%clk 0:00:06]} 79. Ra6 {[%clk 0:00:03]}  Bc7 {[%clk 0:00:06]} 80. Bb3 {[%clk 0:00:03]}  Re7 {[%clk 0:00:06]} 81. Bc4 {[%clk 0:00:03]}  Bd8 {[%clk 0:00:06]} 82. Bb3 {[%clk 0:00:04]}  Bc7 {[%clk 0:00:06]} 83. Bc4 {[%clk 0:00:05]}  Be5 {[%clk 0:00:07]} 84. Bb3 {[%clk 0:00:05]}  Bd4 {[%clk 0:00:07]} 85. Bc4 {[%clk 0:00:06]}  Ke5 {[%clk 0:00:08]} 86. Rc6 {[%clk 0:00:06]}  Ba7 {[%clk 0:00:08]} 87. Bb3 {[%clk 0:00:06]}  Bb8 {[%clk 0:00:08]} 88. Bc4 {[%clk 0:00:06]}  Bd6 {[%clk 0:00:08]} 89. Ra6 {[%clk 0:00:07]}  Rc7 {[%clk 0:00:08]} 90. Bb3 {[%clk 0:00:07]}  Rc3+ {[%clk 0:00:09]} 0-1


[Site "https://www.chess.com"]